fUST/lending_fUST_20240724
["ID","MTS","AMOUNT","RATE_DAILY","PERIOD"]
[333055632,1721781055309,-544.55,0.00014172,2]
[333055633,1721781055318,-500.0,0.00014172,2]
[333055634,1721781055329,-500.0,0.00014172,2]
[333055635,1721781055339,-500.0,0.00014172,2]
[333055636,1721781055349,-548.78,0.00014172,2]
[333055637,1721781055360,-500.0,0.00014173,2]
[333055638,1721781055371,-417.87,0.00014173,2]
[333055639,1721781055381,-611.16,0.00014173,2]
[333055640,1721781055393,-500.0,0.00014173,2]
[333055641,1721781055403,-267.7,0.00014173,2]
[333055642,1721781055414,-500.0,0.00014173,2]
[333055643,1721781055426,-500.0,0.00014173,2]
[333055644,1721781055435,-500.0,0.00014173,2]
[333055645,1721781055445,-500.0,0.00014173,2]
[333055646,1721781055454,-500.0,0.00014173,2]
[333055647,1721781055464,-159.72,0.00014173,2]
[333055648,1721781055473,-500.0,0.00014173,2]
[333055649,1721781055482,-500.0,0.00014173,2]
[333055650,1721781055491,-364.318675,0.00014181,2]
[333055651,1721781055502,-300.996492,0.00014181,2]
[333055652,1721781055515,-300.101,0.00014188,2]
[333055653,1721781055525,-11474.76465316,0.000142,2]
[333055654,1721781055694,-352.465519,0.00013972,2]
[333055655,1721781055709,-352.465519,0.00013972,2]
[333055656,1721781055724,-352.465519,0.00013972,2]
[333055657,1721781055739,-352.465519,0.00013972,2]
[333055658,1721781055754,-1147.53332712,0.000142,2]
[333055659,1721781055773,-15131.98063867,0.000142,2]
[333055661,1721781286902,2000.0,0.00025,120]
[333055662,1721781358809,2000.0,0.00025,120]
[333055664,1721781615649,-150.0,9.998e-05,2]
[333055666,1721782049121,-300.0,9.998e-05,2]
[333055667,1721782049143,-300.0,9.998e-05,2]
[333055668,1721782049164,-968.14358809,9.999e-05,2]
[333055669,1721782049186,-493.63662636,9.999e-05,2]
[333055670,1721782049208,-155.70429949,9.999e-05,2]
[333055671,1721782049229,-521.35008694,9.999e-05,2]
[333055672,1721782049254,-154.77557542,9.999e-05,2]
[333055673,1721782049277,-848.22292058,9.999e-05,2]
[333055674,1721782049298,-270.0,0.00010998,2]
[333055675,1721782049319,-350.0,0.00011011,2]
[333055676,1721782049339,-189.0086612,0.00011073,2]
[333055677,1721782049362,-250.0,0.0001182,2]
[333055678,1721782049384,-250.0,0.00011852,2]
[333055679,1721782049407,-250.0,0.00011885,2]
[333055680,1721782049431,-250.0,0.00011917,2]
[333055681,1721782049453,-250.0,0.00011949,2]
[333055682,1721782049475,-250.0,0.00011982,2]
[333055683,1721782049501,-250.0,0.00012014,2]
[333055684,1721782049540,-24900.0,0.00012046,2]
[333055685,1721782049570,-250.0,0.00012047,2]
[333055686,1721782049598,-250.0,0.00012079,2]
[333055687,1721782049625,-250.0,0.00012111,2]
[333055688,1721782049651,-250.0,0.00012144,2]
[333055689,1721782049676,-250.0,0.00012176,2]
[333055690,1721782049704,-250.0,0.00012209,2]
[333055691,1721782049732,-250.0,0.00012241,2]
[333055692,1721782049759,-250.0,0.00012273,2]
[333055693,1721782049788,-250.0,0.00012306,2]
[333055694,1721782049813,-250.0,0.00012338,2]
[333055695,1721782049837,-250.0,0.00012371,2]
[333055696,1721782049864,-250.0,0.00012403,2]
[333055697,1721782049888,-250.0,0.00012436,2]
[333055698,1721782049912,-2576.89492377,0.000129,2]
[333055699,1721782049935,-2576.89492375,0.00013226,2]
[333055700,1721782049957,-200.0,0.00013425,2]
[333055701,1721782049979,-182.159337,0.00013615,2]
[333055702,1721782050005,-150.498246,0.00013615,2]
[333055703,1721782050029,-6236.14995827,0.0001366,2]
[333055704,1721782050053,-24078.2628885,0.00013688,2]
[333055705,1721782050079,-500.0,0.00013698,2]
[333055706,1721782050111,-500.0,0.00013698,2]
[333055707,1721782050137,-500.0,0.00013698,2]
[333055708,1721782050164,-500.0,0.00013698,2]
[333055709,1721782050188,-500.0,0.00013698,2]
[333055710,1721782050212,-500.0,0.00013698,2]
[333055711,1721782050238,-500.0,0.00013698,2]
[333055712,1721782050261,-500.0,0.00013698,2]
[333055713,1721782050287,-500.0,0.00013698,2]
[333055714,1721782050314,-500.0,0.00013698,2]
[333055715,1721782050339,-500.0,0.00013698,2]
[333055716,1721782050366,-500.0,0.00013698,2]
[333055717,1721782050388,-500.0,0.00013698,2]
[333055718,1721782050412,-500.0,0.00013698,2]
[333055719,1721782050437,-536.36,0.00013698,2]
[333055720,1721782050461,-500.0,0.00013698,2]
[333055721,1721782050491,-500.0,0.00013698,2]
[333055722,1721782050516,-500.0,0.00013698,2]
[333055723,1721782050542,-500.0,0.00013698,2]
[333055724,1721782050566,-500.0,0.00013698,2]
[333055725,1721782050593,-500.0,0.00013698,2]
[333055726,1721782050616,-500.0,0.00013698,2]
[333055727,1721782050640,-500.0,0.00013698,2]
[333055728,1721782050664,-500.0,0.00013698,2]
[333055729,1721782050687,-500.0,0.00013698,2]
[333055730,1721782050711,-500.0,0.00013698,2]
[333055731,1721782050737,-1227.88,0.00013698,2]
[333055732,1721782050761,-500.0,0.00013698,2]
[333055733,1721782050786,-500.0,0.00013698,2]
[333055734,1721782050812,-500.0,0.00013698,2]
[333055735,1721782050836,-500.0,0.00013698,2]
[333055736,1721782050861,-500.0,0.00013698,2]
[333055737,1721782050888,-373.62596632,0.00013698,2]
[333055738,1721782050913,-500.0,0.00013698,2]
[333055739,1721782050941,-500.0,0.00013698,2]
[333055740,1721782050964,-500.0,0.00013698,2]
[333055741,1721782050990,-503.05,0.00013698,2]
[333055742,1721782051015,-500.0,0.00013698,2]
[333055743,1721782051040,-500.0,0.00013698,2]
[333055744,1721782051065,-500.0,0.00013698,2]
[333055745,1721782051092,-500.0,0.00013698,2]
[333055746,1721782051115,-3455.89,0.00013698,2]
[333055747,1721782051141,-500.0,0.00013698,2]
[333055748,1721782051164,-500.0,0.00013698,2]
[333055749,1721782051191,-500.0,0.00013698,2]
[333055750,1721782051215,-500.0,0.00013698,2]
[333055751,1721782051241,-500.0,0.00013698,2]
[333055752,1721782051262,-1734.42,0.00013698,2]
[333055753,1721782051291,-828.83,0.00013698,2]
[333055754,1721782051316,-500.0,0.00013698,2]
[333055755,1721782051340,-500.0,0.00013698,2]
[333055756,1721782051365,-500.0,0.00013698,2]
[333055757,1721782051390,-500.0,0.00013698,2]
[333055758,1721782051413,-500.0,0.00013698,2]
[333055759,1721782051435,-500.0,0.00013698,2]
[333055760,1721782051459,-500.0,0.00013698,2]
[333055761,1721782051484,-500.0,0.00013698,2]
[333055762,1721782051508,-500.0,0.00013698,2]
[333055763,1721782051530,-500.0,0.00013698,2]
[333055764,1721782051552,-150.79468091,0.00013698,2]
[333055765,1721782051575,-500.0,0.00013698,2]
[333055766,1721782051600,-500.0,0.00013698,2]
[333055767,1721782051625,-500.0,0.00013698,2]
[333055768,1721782051649,-500.0,0.00013698,2]
[333055769,1721782051673,-500.0,0.00013698,2]
[333055770,1721782051698,-698.88,0.00013698,2]
[333055771,1721782051720,-500.0,0.00013698,2]
[333055772,1721782051744,-500.0,0.00013698,2]
[333055773,1721782051765,-1570.31,0.00013698,2]
[333055774,1721782051787,-500.0,0.00013698,2]
[333055775,1721782051810,-2030.74,0.00013698,2]
[333055776,1721782051832,-1690.22,0.00013698,2]
[333055777,1721782051856,-173.50801192,0.00013698,2]
[333055778,1721782051878,-500.0,0.00013698,2]
[333055779,1721782051902,-500.0,0.00013698,2]
[333055780,1721782051926,-500.0,0.00013698,2]
[333055781,1721782051949,-500.0,0.00013698,2]
[333055782,1721782051970,-724.2,0.00013698,2]
[333055783,1721782051994,-715.63,0.00013698,2]
[333055784,1721782052017,-5473.08,0.00013698,2]
[333055785,1721782052040,-500.0,0.00013698,2]
[333055786,1721782052067,-4871.25,0.00013698,2]
[333055787,1721782052097,-2224.96,0.00013698,2]
[333055788,1721782052122,-1274.66,0.00013698,2]
[333055789,1721782052148,-500.0,0.00013698,2]
[333055790,1721782052172,-500.0,0.00013698,2]
[333055791,1721782052199,-921.06,0.00013698,2]
[333055792,1721782052224,-7455.7,0.00013698,2]
[333055793,1721782052248,-511.43,0.00013698,2]
[333055794,1721782052271,-1865.69,0.00013698,2]
[333055795,1721782052293,-2080.21,0.00013698,2]
[333055796,1721782052316,-2348.28,0.00013698,2]
[333055797,1721782052339,-500.0,0.00013698,2]
[333055798,1721782052361,-511.58858143,0.00013698,2]
[333055799,1721782052384,-500.0,0.00013698,2]
[333055800,1721782052407,-500.0,0.00013698,2]
[333055801,1721782052429,-500.0,0.00013698,2]
[333055802,1721782052452,-600.72,0.00013698,2]
[333055803,1721782052475,-500.0,0.00013698,2]
[333055804,1721782052501,-500.0,0.00013698,2]
[333055805,1721782052527,-500.0,0.00013698,2]
[333055806,1721782052548,-608.26,0.00013698,2]
[333055807,1721782052575,-9646.17,0.00013698,2]
[333055808,1721782052795,-500.0,0.00013698,2]
[333055809,1721782052821,-500.0,0.00013698,2]
[333055810,1721782052845,-500.0,0.00013698,2]
[333055811,1721782052873,-502.69,0.00013698,2]
[333055812,1721782052897,-500.0,0.00013698,2]
[333055813,1721782052921,-500.0,0.00013698,2]
[333055814,1721782052950,-17983.72,0.00013698,2]
[333055815,1721782052973,-500.0,0.00013698,2]
[333055816,1721782052999,-500.0,0.00013698,2]
[333055817,1721782053020,-500.0,0.00013698,2]
[333055818,1721782053043,-632.45,0.00013698,2]
[333055819,1721782053066,-812.33,0.00013698,2]
[333055820,1721782053089,-1257.75,0.00013698,2]
[333055821,1721782053112,-1296.43,0.00013698,2]
[333055822,1721782053134,-6310.08,0.00013698,2]
[333055823,1721782053155,-1936.61,0.00013698,2]
[333055824,1721782053179,-1732.58,0.00013698,2]
[333055825,1721782053203,-1594.02,0.00013698,2]
[333055826,1721782053225,-500.0,0.00013698,2]
[333055827,1721782053252,-3419.01,0.00013698,2]
[333055828,1721782053274,-500.0,0.00013698,2]
[333055829,1721782053297,-500.0,0.00013698,2]
[333055830,1721782053320,-2480.29,0.00013698,2]
[333055831,1721782053343,-500.0,0.00013698,2]
[333055832,1721782053367,-500.0,0.00013698,2]
[333055833,1721782053390,-500.0,0.00013698,2]
[333055834,1721782053414,-815.34,0.00013698,2]
[333055835,1721782053437,-693.75,0.00013698,2]
[333055836,1721782053460,-500.0,0.00013698,2]
[333055837,1721782053483,-500.0,0.00013698,2]
[333055838,1721782053508,-500.0,0.00013698,2]
[333055839,1721782053531,-13188.87,0.00013698,2]
[333055840,1721782053553,-2010.04,0.00013698,2]
[333055841,1721782053575,-287.8740586,0.00013698,2]
[333055842,1721782053602,-7308.09,0.00013698,2]
[333055843,1721782053626,-500.0,0.00013698,2]
[333055844,1721782053649,-2533.28994181,0.00013698,2]
[333055845,1721782053673,-689.83,0.00013698,2]
[333055846,1721782053695,-5046.17,0.00013698,2]
[333055847,1721782053717,-500.0,0.00013698,2]
[333055848,1721782053744,-858.92,0.00013698,2]
[333055849,1721782053767,-8909.2,0.00013698,2]
[333055850,1721782053791,-500.0,0.00013698,2]
[333055851,1721782053814,-500.0,0.00013698,2]
[333055852,1721782053837,-500.0,0.00013698,2]
[333055853,1721782053863,-500.0,0.00013698,2]
[333055854,1721782053887,-2176.02,0.00013698,2]
[333055855,1721782053912,-500.0,0.00013698,2]
[333055856,1721782053942,-500.0,0.00013698,2]
[333055857,1721782053968,-1535.02,0.00013698,2]
[333055858,1721782053997,-500.0,0.00013698,2]
[333055859,1721782054022,-1480.8,0.00013698,2]
[333055860,1721782054046,-2464.38,0.00013698,2]
[333055861,1721782054071,-500.0,0.00013698,2]
[333055862,1721782054096,-2082.16,0.00013698,2]
[333055863,1721782054121,-500.0,0.00013698,2]
[333055864,1721782054146,-531.23,0.00013698,2]
[333055865,1721782054169,-181.48591883,0.00013698,2]
[333055866,1721782054195,-1378.68,0.00013698,2]
[333055867,1721782054218,-1649.23,0.00013698,2]
[333055868,1721782054242,-500.0,0.00013698,2]
[333055869,1721782054265,-500.0,0.00013698,2]
[333055870,1721782054288,-500.0,0.00013698,2]
[333055871,1721782054310,-500.0,0.00013698,2]
[333055872,1721782054333,-500.0,0.00013698,2]
[333055873,1721782054357,-500.0,0.00013698,2]
[333055874,1721782054379,-500.0,0.00013698,2]
[333055875,1721782054402,-1929.53,0.00013698,2]
[333055876,1721782054426,-11344.78,0.00013698,2]
[333055877,1721782054451,-500.0,0.00013698,2]
[333055878,1721782054473,-1013.64,0.00013698,2]
[333055879,1721782054497,-1340.77,0.00013698,2]
[333055880,1721782054519,-574.71,0.00013698,2]
[333055881,1721782054544,-401.02028102,0.00013698,2]
[333055882,1721782054568,-2398.51,0.00013698,2]
[333055883,1721782054591,-1166.4,0.00013698,2]
[333055884,1721782054613,-4780.12,0.00013698,2]
[333055885,1721782054635,-2673.28,0.00013698,2]
[333055886,1721782054656,-500.0,0.00013698,2]
[333055887,1721782054678,-154.99456254,0.00013698,2]
[333055888,1721782158737,50000.0,0.00024,60]
[333055889,1721782159355,-201.00201275,9.999e-05,2]
[333055895,1721782199790,190.96794673,0.0001,2]
[333055945,1721782231821,-1932.67119283,0.00013598,2]
[333055947,1721782231833,-3611.73943328,0.00013688,2]
[333055949,1721782231843,-500.0,0.00013698,2]
[333055951,1721782231853,-1554.75,0.00013698,2]
[333055953,1721782231864,-577.11,0.00013698,2]
[333055955,1721782231874,-1570.99,0.00013698,2]
[333055957,1721782231884,-500.0,0.00013698,2]
[333055959,1721782231893,-1570.99,0.00013698,2]
[333055961,1721782231902,-1326.89971844,0.00013698,2]
[333055994,1721782237883,-244.09028156,0.00013698,2]
[333055995,1721782237893,-1570.99,0.00013698,2]
[333055996,1721782237903,-500.0,0.00013698,2]
[333055997,1721782237912,-1570.99,0.00013698,2]
[333055998,1721782237926,-1570.99,0.00013698,2]
[333055999,1721782237936,-1570.99,0.00013698,2]
[333056000,1721782237945,-1570.99,0.00013698,2]
[333056001,1721782237954,-5555.97,0.00013698,2]
[333056002,1721782237965,-658.6,0.00013698,2]
[333056003,1721782237975,-500.0,0.00013698,2]
[333056004,1721782237984,-500.0,0.00013698,2]
[333056005,1721782237996,-500.0,0.00013698,2]
[333056006,1721782238008,-1969.89,0.00013698,2]
[333056007,1721782238018,-500.0,0.00013698,2]
[333056008,1721782238029,-1239.39,0.00013698,2]
[333056009,1721782238039,-1263.25,0.00013698,2]
[333056010,1721782238064,-500.0,0.00013698,2]
[333056011,1721782238074,-500.0,0.00013698,2]
[333056012,1721782238085,-500.0,0.00013698,2]
[333056013,1721782238094,-2696.5,0.00013698,2]
[333056014,1721782238102,-232.24113075,0.00013698,2]
[333056015,1721782238123,-267.75886925,0.00013698,2]
[333056017,1721782238133,-500.0,0.00013698,2]
[333056018,1721782238143,-3204.33,0.00013698,2]
[333056020,1721782238153,-504.68,0.00013698,2]
[333056022,1721782238163,-500.0,0.00013698,2]
[333056023,1721782238174,-712.32,0.00013698,2]
[333056024,1721782238185,-1030.26,0.00013698,2]
[333056025,1721782238196,-500.0,0.00013698,2]
[333056026,1721782238207,-500.0,0.00013698,2]
[333056027,1721782238216,-500.0,0.00013698,2]
[333056028,1721782238225,-500.0,0.00013698,2]
[333056029,1721782238234,-500.0,0.00013698,2]
[333056030,1721782238243,-4394.75113075,0.00013698,2]
[333056051,1721782240238,-312.2633,0.00013698,2]
[333056082,1721782246053,-2438.03556925,0.00013698,2]
[333056083,1721782246064,-500.0,0.00013698,2]
[333056084,1721782246077,-2250.44,0.00013698,2]
[333056085,1721782246088,-500.0,0.00013698,2]
[333056086,1721782246098,-500.0,0.00013698,2]
[333056087,1721782246110,-500.0,0.00013698,2]
[333056088,1721782246121,-500.0,0.00013698,2]
[333056089,1721782246130,-500.0,0.00013698,2]
[333056090,1721782246139,-575.69,0.00013698,2]
[333056091,1721782246148,-17234.4,0.00013698,2]
[333056092,1721782246158,-823.07,0.00013698,2]
[333056093,1721782246169,-9244.24,0.00013698,2]
[333056094,1721782246180,-577.09638351,0.00013698,2]
[333056095,1721782246191,-500.0,0.00013698,2]
[333056096,1721782246202,-500.0,0.00013698,2]
[333056097,1721782246213,-500.0,0.00013698,2]
[333056098,1721782246224,-8150.52,0.00013698,2]
[333056099,1721782246236,-1190.45,0.00013698,2]
[333056100,1721782246248,-500.0,0.00013698,2]
[333056101,1721782246259,-500.0,0.00013698,2]
[333056102,1721782246268,-376.17142318,0.00013698,2]
[333056103,1721782246279,-500.0,0.00013698,2]
[333056104,1721782246291,-778.48,0.00013698,2]
[333056105,1721782246301,-500.0,0.00013698,2]
[333056106,1721782246313,-1242.41,0.00013698,2]
[333056107,1721782246323,-500.0,0.00013698,2]
[333056108,1721782246332,-500.0,0.00013698,2]
[333056109,1721782246341,-3276.55,0.00013698,2]
[333056110,1721782246351,-500.0,0.00013698,2]
[333056111,1721782246360,-500.0,0.00013698,2]
[333056112,1721782246373,-606.09,0.00013698,2]
[333056113,1721782246384,-500.0,0.00013698,2]
[333056114,1721782246395,-500.0,0.00013698,2]
[333056115,1721782246405,-781.37,0.00013698,2]
[333056116,1721782246416,-500.0,0.00013698,2]
[333056117,1721782246427,-1660.39,0.00013698,2]
[333056118,1721782246438,-500.0,0.00013698,2]
[333056119,1721782246449,-664.84,0.00013698,2]
[333056120,1721782246460,-823.13,0.00013698,2]
[333056121,1721782246471,-514.01,0.00013698,2]
[333056122,1721782246482,-3865.13,0.00013698,2]
[333056123,1721782246493,-1926.29,0.00013698,2]
[333056124,1721782246503,-689.64,0.00013698,2]
[333056125,1721782246514,-500.0,0.00013698,2]
[333056126,1721782246525,-661.09,0.00013698,2]
[333056127,1721782246535,-500.0,0.00013698,2]
[333056128,1721782246546,-500.0,0.00013698,2]
[333056129,1721782246557,-4835.91,0.00013698,2]
[333056130,1721782246568,-12639.33,0.00013698,2]
[333056131,1721782246579,-1321.23,0.00013698,2]
[333056132,1721782246591,-500.0,0.00013698,2]
[333056133,1721782246600,-500.0,0.00013698,2]
[333056134,1721782246609,-500.0,0.00013698,2]
[333056135,1721782246618,-500.0,0.00013698,2]
[333056136,1721782246629,-1471.06,0.00013698,2]
[333056137,1721782246639,-1849.13,0.00013698,2]
[333056138,1721782246648,-7003.59,0.00013698,2]
[333056139,1721782246658,-8537.99,0.00013698,2]
[333056140,1721782246669,-491.6313939,0.00013698,2]
[333056141,1721782246678,-1597.31,0.00013698,2]
[333056142,1721782246688,-500.0,0.00013698,2]
[333056143,1721782246698,-1580.52,0.00013698,2]
[333056144,1721782246708,-2085.36,0.00013698,2]
[333056145,1721782246717,-500.0,0.00013698,2]
[333056146,1721782246727,-3904.89134786,0.00013698,2]
[333056148,1721782336378,155.70429949,9.999e-05,2]
[333056149,1721782867490,1150.83,0.00025,120]
[333056175,1721783235178,-300.0,9.998e-05,2]
[333056176,1721783235199,-154.66746495,9.999e-05,2]
[333056177,1721783235220,-154.77557542,9.999e-05,2]
[333056178,1721783235244,-521.35008694,9.999e-05,2]
[333056179,1721783235267,-163.31805921,9.999e-05,2]
[333056180,1721783235288,-887.31675178,9.999e-05,2]
[333056181,1721783235312,-488.70204327,9.999e-05,2]
[333056182,1721783250090,-4.93458309,9.999e-05,2]
[333056183,1721783250111,-521.09565697,9.999e-05,2]
[333056184,1721783250131,-162.87421769,9.999e-05,2]
[333056185,1721783250153,-156.54596423,9.999e-05,2]
[333056186,1721783250173,-240.51585871,9.999e-05,2]
[333056187,1721783250195,-154.77557542,9.999e-05,2]
[333056188,1721783250215,-420.0,0.00010998,2]
[333056189,1721783250240,-3486.53008899,0.00011471,2]
[333056190,1721783346148,-300.0,0.0001147,2]
[333056191,1721783346171,-21403.46991101,0.00011471,2]
[333056192,1721783346195,-250.0,0.0001176,2]
[333056193,1721783346219,-250.0,0.00011792,2]
[333056194,1721783346241,-250.0,0.00011825,2]
[333056195,1721783346264,-250.0,0.00011857,2]
[333056196,1721783346284,-250.0,0.00011889,2]
[333056197,1721783346307,-250.0,0.00011921,2]
[333056198,1721783346330,-250.0,0.00011953,2]
[333056199,1721783346354,-250.0,0.00011986,2]
[333056200,1721783346378,-250.0,0.00012018,2]
[333056201,1721783346402,-250.0,0.0001205,2]
[333056202,1721783346424,-250.0,0.00012082,2]
[333056203,1721783346449,-250.0,0.00012115,2]
[333056204,1721783346472,-154.80643637,0.0001212,2]
[333056205,1721783346497,-250.0,0.00012147,2]
[333056206,1721783346520,-250.0,0.00012179,2]
[333056207,1721783346543,-250.0,0.00012211,2]
[333056208,1721783346564,-250.0,0.00012244,2]
[333056209,1721783346588,-250.0,0.00012276,2]
[333056210,1721783346608,-250.0,0.00012308,2]
[333056211,1721783362169,-250.0,0.0001234,2]
[333056212,1721783362191,-250.0,0.00012373,2]
[333056218,1721783422223,2389.33773106,0.00012308,2]
[333056219,1721783422247,2294.886094,0.00012308,2]
[333056220,1721783422272,2421.35,0.00012308,2]
[333056221,1721783422298,2328.11429541,0.00012308,2]
[333056222,1721783422322,2426.5853671,0.00012308,2]
[333056223,1721783422343,2390.56029067,0.00012308,2]
[333056361,1721783438188,-2750.36822423,0.00012308,2]
[333056362,1721783438204,-1749.12705698,0.00012308,2]
[333056363,1721783438216,-300.0,0.00013199,2]
[333056364,1721783438227,-500.0,0.000132,2]
[333056365,1721783438239,-500.0,0.000132,2]
[333056366,1721783438250,-500.0,0.000132,2]
[333056367,1721783438261,-500.0,0.000132,2]
[333056368,1721783438273,-500.0,0.000132,2]
[333056369,1721783438288,-500.0,0.000132,2]
[333056370,1721783438300,-500.0,0.000132,2]
[333056371,1721783438310,-597.49,0.000132,2]
[333056372,1721783438329,-500.0,0.000132,2]
[333056373,1721783438344,-500.0,0.000132,2]
[333056374,1721783438356,-500.0,0.000132,2]
[333056375,1721783438369,-500.0,0.000132,2]
[333056376,1721783438380,-500.0,0.000132,2]
[333056377,1721783438393,-500.0,0.000132,2]
[333056378,1721783438402,-500.0,0.000132,2]
[333056379,1721783438412,-500.0,0.000132,2]
[333056380,1721783438424,-500.0,0.000132,2]
[333056381,1721783438435,-500.0,0.000132,2]
[333056382,1721783438450,-500.0,0.000132,2]
[333056383,1721783438463,-500.0,0.000132,2]
[333056384,1721783438475,-500.0,0.000132,2]
[333056385,1721783438486,-500.0,0.000132,2]
[333056386,1721783438498,-500.0,0.000132,2]
[333056387,1721783438511,-500.0,0.000132,2]
[333056388,1721783438521,-500.0,0.000132,2]
[333056389,1721783438533,-500.0,0.000132,2]
[333056390,1721783438543,-500.0,0.000132,2]
[333056391,1721783438557,-500.0,0.000132,2]
[333056392,1721783438568,-500.0,0.000132,2]
[333056393,1721783438580,-500.0,0.000132,2]
[333056394,1721783438591,-500.0,0.000132,2]
[333056395,1721783438602,-500.0,0.000132,2]
[333056396,1721783438613,-500.0,0.000132,2]
[333056397,1721783438624,-500.0,0.000132,2]
[333056398,1721783438635,-500.0,0.000132,2]
[333056399,1721783438647,-500.0,0.000132,2]
[333056400,1721783438658,-500.0,0.000132,2]
[333056401,1721783438670,-500.0,0.000132,2]
[333056402,1721783438681,-500.0,0.000132,2]
[333056403,1721783438692,-500.0,0.000132,2]
[333056404,1721783438703,-500.0,0.000132,2]
[333056405,1721783438716,-500.0,0.000132,2]
[333056406,1721783438727,-500.0,0.000132,2]
[333056407,1721783438737,-500.0,0.000132,2]
[333056408,1721783438747,-500.0,0.000132,2]
[333056409,1721783438759,-500.0,0.000132,2]
[333056410,1721783438771,-520.96,0.000132,2]
[333056411,1721783438782,-200.0,0.00013425,2]
[333056412,1721783438794,-464.83257816,0.00013588,2]
[333056413,1721783438808,-1226.25471561,0.00013588,2]
[333056414,1721783438818,-397.33535095,0.000136,2]
[333056415,1721783438827,-367.35615468,0.00013617,2]
[333056416,1721783438838,-5304.19710114,0.00013645,2]
[333056417,1721783438848,-22420.84647187,0.00013688,2]
[333056424,1721783440356,-5783.95827943,0.00013688,2]
[333056425,1721783440366,-500.0,0.00013698,2]
[333056426,1721783440376,-500.0,0.00013698,2]
[333056427,1721783440385,-500.0,0.00013698,2]
[333056428,1721783440397,-500.0,0.00013698,2]
[333056429,1721783440406,-500.0,0.00013698,2]
[333056430,1721783440415,-500.0,0.00013698,2]
[333056431,1721783440425,-500.0,0.00013698,2]
[333056432,1721783440434,-500.0,0.00013698,2]
[333056433,1721783440444,-503.60989921,0.00013698,2]
[333056434,1721783440454,-500.0,0.00013698,2]
[333056435,1721783440464,-500.0,0.00013698,2]
[333056436,1721783440474,-500.0,0.00013698,2]
[333056437,1721783440484,-500.0,0.00013698,2]
[333056438,1721783440494,-500.0,0.00013698,2]
[333056439,1721783440503,-500.78773657,0.00013698,2]
[333056440,1721783440513,-500.0,0.00013698,2]
[333056441,1721783440522,-500.0,0.00013698,2]
[333056442,1721783440531,-500.0,0.00013698,2]
[333056443,1721783440541,-500.0,0.00013698,2]
[333056444,1721783440551,-500.0,0.00013698,2]
[333056445,1721783440561,-500.0,0.00013698,2]
[333056446,1721783440571,-500.0,0.00013698,2]
[333056447,1721783440581,-500.0,0.00013698,2]
[333056448,1721783440592,-500.0,0.00013698,2]
[333056449,1721783440603,-358.23991,0.00013698,2]
[333056450,1721783440614,-500.0,0.00013698,2]
[333056451,1721783440625,-254.73323424,0.00013698,2]
[333056476,1721783446543,-245.26676576,0.00013698,2]
[333056477,1721783446553,-500.0,0.00013698,2]
[333056478,1721783446566,-500.0,0.00013698,2]
[333056479,1721783446576,-505.42141396,0.00013698,2]